[Event "Budapest Chess Festival 2024"]
[Site "Budapest"]
[Date "2024.05.23"]
[Round "1.20"]
[White "Vetoshko, Volodymyr"]
[Black "Csati, Oliver"]
[Result "1-0"]
[ECO "E04"]
[WhiteElo "2505"]
[BlackElo "2250"]
[Annotator "TA"]
[PlyCount "99"]
[EventDate "2024.05.20"]
[EventType "swiss"]
[EventCountry "HUN"]
[SourceTitle "playchess.com"]
[Source "ChessBase"]
[SourceQuality "1"]
[TimeControl "40/5400+30:1800+30"]

{[%evp 18,99,25,18,27,0,0,0,13,6,0,0,0,6,4,0,0,0,37,40,34,32,25,30,35,33,35,37,33,40,52,48,71,77,75,82,70,73,72,71,82,92,102,102,109,96,97,102,98,96,117,130,192,181,176,170,236,243,224,227,271,274,279,274,206,156,156,137,231,218,252,184,441,438,669,650,5237,5237,5097,5097,5065,5065,29988,29989]} 1. d4 {[%emt 0:00:39]} Nf6 {[%emt 0:00:34]} 2. c4 {[%emt 0:00:06]} e6 {[%emt 0:00:03]} 3. g3 {[%emt 0:01:01]} d5 {[%emt 0:00:26]} 4. Nf3 {[%emt 0:00:13]} dxc4 {[%emt 0:00:36]} 5. Bg2 {[%emt 0:01:08]} c5 {[%emt 0:00:08]} 6. O-O {[%emt 0:02:03]} Nc6 {[%emt 0:00:10]} 7. dxc5 {[%emt 0:01:24]} Qxd1 {[%emt 0:02:42]} 8. Rxd1 {[%emt 0:00:01]} Bxc5 {[%emt 0:00:02]} 9. Nbd2 {[%emt 0:00:18]} c3 {[%emt 0:00:29]} 10. bxc3 {[%emt 0:00:01]} O-O {[%emt 0:00:38]} 11. Ne1 {[%emt 0:03:53]} Rd8 {[%emt 0:00:39]} 12. Nd3 {[%emt 0:01:33]} Be7 {[%emt 0:00:36] The position is equal.} 13. Rb1 {[%emt 0:02:30]} Nd5 {[%emt 0:01:37]} 14. Bb2 {[%emt 0:02:31]} Nb6 {[%emt 0:06:14]} 15. c4 {[%emt 0:07:42][%cal Bc3c4,Bc4c5][%mdl 32]} Bd7 {[%emt 0:05:30]} 16. Ba1 {[%emt 0:06:49]} Rab8 {[%emt 0:04:09]} 17. c5 {[%emt 0:05:49]} Nd5 {[%emt 0:01:22]} 18. Nc4 {[%emt 0:09:32]} Be8 {[%emt 0:08:35] [#]} 19. Nd6 $1 {[%emt 0:10:24]} Bxd6 {[%emt 0:24:40]} 20. cxd6 {[%emt 0:00:16]} Rxd6 {[%emt 0:01:47]} 21. Nf4 {[%emt 0:01:06]} Rdd8 {[%emt 0:05:56]} 22. Nxd5 {[%emt 0:05:15]} exd5 {[%emt 0:00:02]} 23. Bxd5 {[%emt 0:06:30]} Na5 {[%emt 0:04:16]} 24. Bc3 {[%emt 0:09:39] A strong pair of Bishops. Black is weak on the dark squares} b6 {[%emt 0:07:17]} 25. Bxa5 {[%emt 0:04:25]} bxa5 {[%emt 0:00:06]} 26. Rxb8 {[%emt 0:00:26]} Rxb8 $16 {[%emt 0:00:02][%mdl 4096] Endgame. KRB-KRB} 27. Rc1 {[%emt 0:00:12]} Kf8 {[%emt 0:06:06]} 28. Rc7 {[%emt 0:01:19]} Rd8 {[%emt 0:02:09]} 29. e4 {[%emt 0:00:45] White has more active pieces.} Rd7 {[%emt 0:00:16]} 30. Rc8 {[%emt 0:06:28]} Rd6 {[%emt 0:11:01] Prevents Bc6.} 31. Ra8 {[%emt 0:00:28]} a6 {[%emt 0:00:06]} 32. f3 {[%emt 0:04:13]} Ke7 {[%emt 0:00:34]} 33. Ra7+ {[%emt 0:00:46]} Bd7 {[%emt 0:03:43]} 34. Kf2 {[%emt 0:00:26]} f6 {[%emt 0:01:54]} (34... Ke8 $16) 35. Ke3 $18 {[%emt 0:02:35]} Rb6 {[%emt 0:00:07]} 36. a3 {[%emt 0:03:07]} g5 {[%emt 0:02:01]} (36... Kd6 {keeps fighting.} 37. Bg8 g5) 37. Kd4 {[%emt 0:00:15]} h6 {[%emt 0:01:40]} 38. f4 {[%emt 0:00:53]} Kd8 {[%emt 0:00:07]} 39. e5 {[%emt 0:01:11]} gxf4 {[%emt 0:01:03]} 40. gxf4 {[%emt 0:00:00][%cal Bg3f4,Bf4e5,Be5e6][%mdl 32]} fxe5+ {[%emt 0:00:00]} 41. fxe5 {[%emt 0:12:09]} Be6 {[%emt 0:19:15]} 42. Be4 {[%emt 0:03:41] Hoping for Kc5.} Bd7 {[%emt 0:04:39]} (42... Rb2 $16 {was worth a try.}) 43. Bd3 {[%emt 0:00:39]} a4 {[%emt 0:06:16]} 44. Bc4 {[%emt 0:06:24] And now e6 would win.} (44. Bxa6 Rb2 45. h4 Rh2 $16) 44... Rb2 $2 {[%emt 0:00:50]} (44... Bb5) 45. e6 {[%emt 0:01:09]} (45. Bxa6 Rxh2 46. Bc4 Rf2 $18) 45... Bb5 {[%emt 0:00:09] [#]} (45... Bc6 $142 46. Ke5 (46. Bxa6 Bb5 $18) (46. Rxa6 Bf3 $18) 46... Bb7) 46. Bd5 $1 {[%emt 0:00:27]} Rc2 {[%emt 0:02:26][%cal Ob5c6]} 47. Ke5 {[%emt 0:07:06] Threatening mate with Kd6.} Bc6 {[%emt 0:00:30]} 48. Bxc6 {[%emt 0:00:38]} ({Worse is} 48. Rxa6 Bxd5 49. Kxd5 Rd2+ 50. Ke5 Re2+ 51. Kd5 Rd2+ 52. Ke5 Rxh2 $11) 48... Rxc6 {[%emt 0:00:03]} 49. Kf6 {[%emt 0:00:04] White wants to mate with Kf7.} Rc8 {[%emt 0:00:58]} 50. Kf7 {[%emt 0:00:30] Weighted Error Value: White=0.05 (flawless) /Black=0.45.  Mistake:       	---       	Black=5      Inaccurate:     	White=1     	Black=2      OK:         	White=22    	Black=12     Best:        	White=1     	---        Strong:       	White=1     	---} 1-0

[Event "Budapest Chess Festival 2024"]
[Site "Budapest"]
[Date "2024.05.24"]
[Round "2.1"]
[White "Aryan Chopra"]
[Black "Karacsonyi, Gellert"]
[Result "1-0"]
[ECO "C60"]
[WhiteElo "2641"]
[BlackElo "2389"]
[Annotator "TA"]
[PlyCount "75"]
[EventDate "2024.05.20"]
[EventType "swiss"]
[EventCountry "HUN"]
[SourceTitle "playchess.com"]
[Source "ChessBase"]
[SourceQuality "1"]
[TimeControl "40/5400+30:1800+30"]

{[%evp 9,75,15,44,25,28,23,20,33,41,27,31,22,29,29,79,78,66,68,72,70,73,16,127,133,130,104,219,191,227,220,235,157,176,172,172,172,174,163,167,180,165,177,183,186,189,175,176,179,187,193,208,219,239,211,232,239,209,226,246,242,287,302,1536,1364,29990,29991,29991,29992]} 1. e4 {[%emt 0:00:33]} e5 {[%emt 0:00:37]} 2. Nf3 {[%emt 0:00:05]} Nc6 {[%emt 0:00:08]} 3. Bb5 {[%emt 0:00:06]} Nge7 {[%emt 0:01:01]} 4. Nc3 {[%emt 0:00:34]} Ng6 {[%emt 0:00:17]} 5. h4 {[%emt 0:00:48]} h5 {[%emt 0:00:58]} 6. d4 {[%emt 0:00:52]} Nxd4 {[%emt 0:03:37]} 7. Nxd4 {[%emt 0:00:16]} exd4 {[%emt 0:00:09]} 8. Qxd4 {[%emt 0:00:14] The position is equal.} c6 {[%emt 0:00:58]} 9. Be2 {[%emt 0:00:35]} Qb6 {[%emt 0:02:00]} 10. Qd3 {[%emt 0:04:42]} Be7 {[%emt 0:06:05]} 11. a3 {[%emt 0:28:22]} Qc7 {[%emt 0:10:42]} (11... Bf6 $11) 12. g3 $16 {[%emt 0:02:05]} Ne5 {[%emt 0:02:36]} 13. Qd1 {[%emt 0:07:59]} g6 {[%emt 0:02:02]} 14. f4 {[%emt 0:01:35]} Ng4 {[%emt 0:00:08]} 15. Qd4 {[%emt 0:05:23]} (15. Bxg4 $16 hxg4 16. Be3 (16. Qxg4 d5 $11)) 15... Rf8 {[%emt 0:05:53] Black is on the road to losing.} (15... Bf6 $11 {keeps the balance.} 16. e5 Bg7) 16. Bxg4 {[%emt 0:00:23]} hxg4 {[%emt 0:00:06]} 17. Be3 {[%emt 0:01:33] White is more active.} d6 {[%emt 0:00:56]} (17... Qd6 $16) 18. O-O-O {[%emt 0:00:55]} Be6 {[%emt 0:12:27]} 19. h5 {[%emt 0:02:44]} b6 {[%emt 0:04:45]} 20. h6 {[%emt 0:03:23]} O-O-O {[%emt 0:01:56]} 21. h7 {[%emt 0:00:27]} f6 {[%emt 0:01:56] [#]} 22. f5 $1 {[%emt 0:08:16][%mdl 512]} gxf5 {[%emt 0:07:13]} 23. Bh6 {[%emt 0:00:06]} Rf7 {[%emt 0:00:29] [#]} 24. Bg7 $1 {[%emt 0:00:10][%mdl 512] Dodges Rxh7} Rxg7 {[%emt 0:00:05]} 25. h8=Q {[%emt 0:00:05]} (25. h8=B $2 {loses.} Rf7 26. Rh5 Qd7 $17) (25. h8=R fxe4 26. Nxe4 (26. Qxe4 Qd7 $11) 26... d5 27. Nxf6 Rf7 28. Rxd8+ (28. Nxg4 Bc5 $17) 28... Qxd8 $11) 25... Rxh8 {[%emt 0:00:06]} 26. Rxh8+ {[%emt 0:00:05]} Kb7 {[%emt 0:00:44] [#]} 27. exf5 $1 {[%emt 0:00:08]} Bxf5 {[%emt 0:03:32] [#]} 28. Nb5 $1 $36 {[%emt 0:08:17][%mdl 2560] White has strong initiative.} cxb5 {[%emt 0:04:21][%csl Gf5][%cal Rc7c2]} 29. Qd5+ {[%emt 0:00:04]} Ka6 {[%emt 0:00:11][%csl Gf5][%cal Rc7c2]} 30. Qxf5 {[%emt 0:00:06] Rc8 would now be deadly.} Rg5 {[%emt 0:00:50][%cal Bg7g5,Bg5e5,Be5e1][%mdl 32]} 31. Rc8 {[%emt 0:03:15]} Qb7 {[%emt 0:07:49]} 32. Qe6 {[%emt 0:00:04]} Re5 {[%emt 0:00:18]} 33. Qxg4 {[%emt 0:00:49]} f5 {[%emt 0:00:25]} 34. Qg8 {[%emt 0:00:08]} Bg5+ {[%emt 0:00:28]} 35. Kb1 $1 {[%emt 0:00:26]} Qf3 $2 {[%emt 0:00:39]} (35... Qd7 36. Rc3 Bd8) 36. Rxd6 $18 {[%emt 0:07:17] Threatening mate with Rc7.} Be7 {[%emt 0:02:53] [#]} 37. Rc7 $1 {[%emt 0:00:30]} Re1+ {[%emt 0:00:55]} 38. Ka2 {[%emt 0:00:04] Weighted Error Value: White=0.10 (very precise) /Black=0.41.  Mistake:       	White=1     	Black=4      Inaccurate:     	White=1     	Black=1      OK:         	White=13    	Black=13     Best:        	White=4     	Black=2      Strong:       	White=2     	---        Brilliant:      	White=1     	---} 1-0

[Event "Budapest Chess Festival 2024"]
[Site "Budapest"]
[Date "2024.05.24"]
[Round "2.2"]
[White "Neverov, Valeriy"]
[Black "Onyshchuk, Volodymyr"]
[Result "1/2-1/2"]
[ECO "B08"]
[WhiteElo "2389"]
[BlackElo "2619"]
[Annotator "TA"]
[PlyCount "24"]
[EventDate "2024.05.20"]
[EventType "swiss"]
[EventCountry "HUN"]
[SourceTitle "playchess.com"]
[Source "ChessBase"]
[SourceQuality "1"]
[TimeControl "40/5400+30:1800+30"]

{[%evp 11,24,25,55,53,52,56,56,35,75,73,89,31,26,24,37]} 1. d4 d6 2. e4 Nf6 3. Nc3 g6 4. Nf3 Bg7 5. Be3 O-O 6. Qd2 Bg4 {[%cal Oc7c5]} 7. Ng5 Nc6 8. h3 Bd7 9. O-O-O a6 10. f4 {White is more active.} b5 {[%cal Bb7b5,Bb5b4][%mdl 32]} 11. e5 (11. d5 $16) 11... b4 $1 $14 12. Nce4 Nd5 {Weighted Error Value: White=0.10 (very precise) /Black=0.12 (very precise) .  Mistake:       	White=1     	---        Inaccurate:     	---       	Black=1      OK:         	White=3     	Black=3      Strong:       	---       	Black=1} 1/2-1/2

[Event "Budapest Chess Festival 2024"]
[Site "Budapest"]
[Date "2024.05.24"]
[Round "2.3"]
[White "Berkes, Ferenc"]
[Black "Hoang, Thanh Trang"]
[Result "1-0"]
[ECO "D31"]
[WhiteElo "2618"]
[BlackElo "2382"]
[Annotator "TA"]
[PlyCount "75"]
[EventDate "2024.05.20"]
[EventType "swiss"]
[EventCountry "HUN"]
[SourceTitle "playchess.com"]
[Source "ChessBase"]
[SourceQuality "1"]
[TimeControl "40/5400+30:1800+30"]

{[%evp 9,75,20,17,17,20,21,23,11,37,37,47,29,31,0,0,0,0,0,0,0,0,0,0,0,0,0,0,-10,19,50,65,56,45,47,65,89,134,147,128,139,133,137,139,135,182,185,466,462,483,429,423,472,466,469,443,375,397,397,400,389,368,371,998,580,537,529,5214,699]} 1. d4 d5 2. c4 e6 3. Nc3 a6 4. cxd5 exd5 5. Bf4 Nf6 6. e3 Bd6 7. Bg5 c6 8. Bd3 {White has an edge.} Be6 9. f4 h6 10. Bh4 Qe7 {[%cal Og7g5]} 11. Qd2 g5 $1 12. fxg5 Ne4 13. Bxe4 hxg5 $1 14. Bxg5 Qxg5 15. Nf3 Qg7 16. Bd3 Bxh2 17. Nxh2 Rxh2 18. O-O-O (18. Rxh2 $5 Qg3+ $8 19. Qf2 Qxh2 20. O-O-O $11) 18... Rxg2 (18... Rxh1 {simplifies} 19. Rxh1 Nd7 20. Qf2 O-O-O) 19. Ne2 $1 {Qb4 is the strong threat.} Nd7 20. Qa5 {Strongly threatening Nf4.} Bg4 21. Rde1 Bxe2 22. Bxe2 {White now steadily converts the win.} Qg3 {[%cal Od7f8]} 23. Rh8+ Nf8 24. Qb4 $1 {[%csl LRb7,LRf8]} c5 (24... Qxe3+ $2 25. Kd1 O-O-O 26. Bg4+ (26. Rxf8 Qe4 $18) 26... Rxg4 27. Rxe3 $18) 25. dxc5 {[%cal Oc5c6] And now c6! would win.} Rc8 (25... Qxe3+ $2 26. Kd1 Rg1 27. c6 (27. Qxb7 Rxe1+ 28. Kxe1 Qc1+ 29. Kf2 Qf4+ 30. Kg2 Rb8 $11) (27. Bf1 Rxf1 28. Qa4+ Ke7 $11) 27... Rxe1+ 28. Kxe1 $18) 26. Kd1 {[%cal Oc5c6] c6! would now be deadly.} Qe5 (26... Rg1 $16) 27. Qxb7 $40 {[%mdl 128] White goes for the king.} Rb8 (27... Qc7 {was called for.} 28. Qxc7 (28. Qxa6 Qxc5 29. Qb5+ Ke7 $16) (28. Qxd5 Rd8 $19) (28. Bxa6 Qxb7 29. Bxb7 Rxc5 $11) 28... Rxc7) 28. Qc6+ (28. Qxa6 $2 Qxh8 29. Bb5+ Rxb5 (29... Nd7 30. Bxd7+ Kd8 31. Qd6 $11) 30. Qxb5+ Ke7 $19) 28... Ke7 {[%cal Be8e7,Be7f7,Bf7e6][%mdl 32] [#]} 29. Rh5 $1 f5 {[#]} 30. Rxf5 $3 {[%mdl 512]} Qxf5 31. Qd6+ (31. Bxa6 $2 Qc2#) 31... Kf7 {( -> ...Qb1+)} 32. Rf1 Rf2 33. Rxf2 (33. Qxb8 $2 {is the wrong capture.} Qb1+ (33... Rxf1+ $2 34. Bxf1 Qxf1+ 35. Kd2 $19) 34. Kd2 Qxf1 $19) 33... Qxf2 34. Qxb8 Qxe3 35. Qb7+ (35. Bxa6 Qxc5 36. Bb5 Qg1+ 37. Kc2 Qc5+ 38. Kb3 Ne6 $14) 35... Ke6 $2 (35... Kf6 36. Qxd5 (36. Bxa6 Qd4+ 37. Kc2 Qxc5+ 38. Kb3 Qd6 $16) 36... Ne6 37. Bxa6 Nxc5) 36. Qxa6+ {White is clearly winning.} ({Weaker is} 36. Bxa6 Qd4+ 37. Kc2 Qxc5+ 38. Kb3 Qe3+ 39. Ka4 Nd7 $14) 36... Kf7 37. Qb7+ Ke6 38. Qc6+ {Weighted Error Value: White=0.21 (precise) /Black=0.19 (very precise) .  Mistake:       	White=1     	Black=3      Inaccurate:     	White=2     	Black=4      OK:         	White=8     	Black=10     Best:        	White=8     	Black=6      Strong:       	White=3     	Black=2      Brilliant:      	White=1     	---} (38. Qg7 $142 d4 39. Bc4+ (39. Qxf8 Qg1+ 40. Kc2 d3+ 41. Bxd3 Qd4 $18) 39... Kf5 40. Qxf8+ Kg6 41. Qf7+ Kg5 42. c6) 1-0

[Event "Budapest Chess Festival 2024"]
[Site "Budapest"]
[Date "2024.05.24"]
[Round "2.4"]
[White "Jinan, Jomon"]
[Black "Kozak, Adam"]
[Result "0-1"]
[ECO "A17"]
[WhiteElo "2380"]
[BlackElo "2607"]
[Annotator "TA"]
[PlyCount "120"]
[EventDate "2024.05.20"]
[EventType "swiss"]
[EventCountry "HUN"]
[SourceTitle "playchess.com"]
[Source "ChessBase"]
[SourceQuality "1"]
[TimeControl "40/5400+30:1800+30"]

{[%evp 50,120,0,0,0,0,0,0,-7,-3,0,0,0,0,0,0,-16,-121,-114,-110,-106,-107,-88,-78,-89,-134,-127,-179,-173,-227,-267,-268,-26,-63,-55,-50,-58,-34,-66,-27,-52,-52,-52,-61,-39,-322,-299,-303,-324,-312,-318,-383,-381,-802,-804,-836,-881,-860,-791,-1066,-1008,-2575,-3212,-29971,-29967,-29982,-29983,-29985,-12811,-29992,-29993,-29997,-29998]} 1. c4 {[%emt 0:00:37]} Nf6 {[%emt 0:01:20]} 2. Nf3 {[%emt 0:00:27]} e6 {[%emt 0:00:20]} 3. Nc3 {[%emt 0:00:22]} b6 {[%emt 0:02:05]} 4. a3 {[%emt 0:00:37]} c5 {[%emt 0:02:56]} 5. e3 {[%emt 0:01:01]} g6 {[%emt 0:13:45]} 6. d4 {[%emt 0:02:07]} Bg7 {[%emt 0:11:19]} 7. d5 {[%emt 0:08:46]} exd5 {[%emt 0:00:17]} 8. cxd5 {[%emt 0:00:09]} O-O {[%emt 0:00:10]} 9. Be2 {[%emt 0:05:28]} Re8 {[%emt 0:00:14]} 10. Nd2 {[%emt 0:03:06]} d6 {[%emt 0:03:33]} 11. O-O {[%emt 0:01:07]} Na6 {[%emt 0:02:43]} 12. e4 {[%emt 0:12:02]} Nc7 {[%emt 0:00:27]} 13. Bd3 {[%emt 0:06:39]} Rb8 {[%emt 0:04:11]} 14. Nb5 {[%emt 0:09:57]} Nxb5 {[%emt 0:01:54]} 15. Bxb5 {[%emt 0:00:02]} Bd7 {[%emt 0:09:25]} 16. Bd3 {[%emt 0:05:20]} b5 {[%emt 0:00:41]} 17. Re1 {[%emt 0:03:49]} Ng4 {[%emt 0:20:35]} 18. Nf3 {[%emt 0:10:45]} c4 {[%emt 0:10:11]} 19. Bc2 {[%emt 0:02:38]} Qb6 {[%emt 0:01:09]} 20. Rf1 {[%emt 0:03:38]} Nf6 {[%emt 0:03:11]} 21. Re1 {[%emt 0:02:14]} Bg4 {[%emt 0:00:57]} 22. Be3 {[%emt 0:03:19]} Qc7 {[%emt 0:00:55]} 23. Bd4 {[%emt 0:01:53]} a6 {[%emt 0:00:57]} 24. h3 {[%emt 0:04:13]} Bxf3 {[%emt 0:00:50]} 25. Qxf3 {[%emt 0:00:02]} Nd7 {[%emt 0:00:06]} 26. Bxg7 {[%emt 0:00:17]} Kxg7 {[%emt 0:00:02]} 27. Qc3+ {[%emt 0:02:29]} Kg8 {[%emt 0:00:08]} 28. b4 {[%emt 0:02:41]} Qd8 {[%emt 0:04:59]} 29. a4 {[%emt 0:05:34]} Qe7 {[%emt 0:01:23]} 30. axb5 {[%emt 0:02:11]} axb5 {[%emt 0:00:02]} 31. Ra7 {[%emt 0:00:57]} Qf6 {[%emt 0:03:07]} 32. Qxf6 {[%emt 0:00:39]} Nxf6 {[%emt 0:00:02]} 33. Kf1 {[%emt 0:01:11]} (33. Raa1 $1 $11 {was the only way to keep the balance.}) 33... Ra8 $17 {[%emt 0:00:18]} 34. Rxa8 {[%emt 0:00:32]} Rxa8 {[%emt 0:00:01]} 35. Ke2 {[%emt 0:00:27]} g5 {[%emt 0:02:35]} 36. Kd2 {[%emt 0:00:13]} Nd7 {[%emt 0:00:12]} 37. Kc3 Ra2 {[%emt 0:00:12]} 38. Re2 {[%emt 0:01:26]} (38. h4 $17 h6 (38... gxh4 39. Rh1 $17) 39. Rh1) 38... Ne5 $19 {[%emt 0:01:32]} 39. Bd1 {[%emt 0:00:32] [#]} (39. Rd2 $142) 39... Ra1 $1 $19 {[%emt 0:00:40]} (39... Ra3+ 40. Kb2 Ra7 (40... Rd3 41. Bc2 $14) 41. Bc2 $17) 40. Bc2 {[%emt 0:00:00] [#]} Nd3 $2 {[%emt 0:00:00]} (40... Kg7 $1 $19 {[%mdl 512] Strongly threatening ...Rf1.} 41. Rd2 Rg1) 41. Bxd3 $11 {[%emt 0:13:32]} Ra3+ {[%emt 0:00:42]} 42. Kb2 $1 {[%emt 0:01:23]} Rxd3 {[%emt 0:22:12]} 43. e5 $1 {[%emt 0:02:37]} dxe5 {[%emt 0:01:24]} (43... Rxd5 44. exd6 Kg7 (44... Rxd6 45. Re5 $11) 45. Re7 $11) 44. Rxe5 {[%emt 0:00:10]} f6 {[%emt 0:00:05]} 45. Rf5 {[%emt 0:11:27]} Kf7 {[%emt 0:00:09]} 46. Kc2 {[%emt 0:00:47]} Rb3 {[%emt 0:04:00]} 47. d6 $2 {[%emt 0:00:16][%mdl 8192]} (47. h4 $15) 47... Rxb4 $19 {[%emt 0:00:27]} 48. d7 {[%emt 0:00:18]} Ke7 {[%emt 0:00:04]} 49. Rxf6 {[%emt 0:00:06]} Kxd7 $1 {[%emt 0:00:15]} 50. Rf7+ {[%emt 0:00:53]} Kc6 {[%emt 0:01:53]} 51. Rxh7 $2 {[%emt 0:01:37]} (51. Rf6+ Kb7 52. h4) 51... Ra4 $19 {[%emt 0:00:06]} 52. Rg7 {[%emt 0:03:16]} Ra2+ {[%emt 0:02:03]} 53. Kc3 {[%emt 0:00:29]} Ra3+ {[%emt 0:00:02]} ({And not} 53... Rxf2 54. Rg6+ Kd7 55. Rxg5 $11) 54. Kc2 {[%emt 0:00:35]} b4 {[%emt 0:00:27]} 55. Rxg5 {[%emt 0:00:30]} Ra2+ {[%emt 0:00:13]} 56. Kb1 {[%emt 0:00:19]} Rxf2 {[%emt 0:00:04]} 57. h4 {[%emt 0:00:45]} c3 {[%emt 0:00:36]} 58. Rg8 {[%emt 0:00:29]} Kb5 {[%emt 0:00:52]} (58... Kc5 $142 59. Rc8+ Kd4 60. Rd8+ Kc4 61. Kc1 Rf1+ (61... Rxg2 $2 62. h5 $19) 62. Rd1 Rxd1+ 63. Kxd1 Kb3 64. g4 c2+ (64... Kb2 {gets mated.} 65. g5 c2+ 66. Ke1 Kc3 67. g6 c1=Q+ 68. Kf2 Qf4+ 69. Kg2 b3 70. g7 Qg4+ 71. Kh2 b2 72. g8=Q Qxg8 73. Kh3 b1=Q 74. Kh2 Qgg1+ 75. Kh3 Qf5#) 65. Kd2 Kb2 66. g5 c1=Q+ (66... c1=R 67. h5 Rg1 68. g6 b3 69. h6 Rxg6 70. h7 Rh6 71. Kd3 Rxh7 72. Kd4 Kc2 73. Kc5 b2 74. Kd4 b1=Q 75. Ke4 Qb5 76. Kf4 Rh4+ 77. Kg3 Qg5+ 78. Kf3 Rf4+ 79. Ke3 Qe5#) 67. Kd3 b3 68. g6 Ka3 69. g7 b2 70. Kd4 b1=Q (70... b1=R {is a self mate.} 71. g8=Q Qf4+ 72. Kc5 Qe5+ 73. Kc6 Rc1+ 74. Kb7 Rc7+ 75. Kb8 Rd7+ 76. Ka8 Qe4+ 77. Kb8 Qb7#) (70... Qg1+ 71. Kd5 Qxg7 72. Ke4 b1=Q+ 73. Ke3 Qe1+ 74. Kf4 Qf6+ 75. Kg4 Qexh4#) 71. g8=Q Qb4+ 72. Kd5 Qcc4+ (72... Qxh4 73. Qa8+ Kb3 74. Qb7+ Qb4 75. Qxb4+ Kxb4 76. Ke4 Qg5 77. Kf3 Kc4 78. Ke4 Kc3 79. Kf3 Kd3 80. Kf2 Qg4 81. Kf1 Ke3 82. Ke1 Qg1#) 73. Ke5 Qe7+ 74. Kf5 Qce4#) 59. h5 {[%emt 0:00:31]} Kc4 {[%emt 0:00:08]} 60. Rg3 {[%emt 0:00:31]} Rf1+ {[%emt 0:00:07]} 0-1

[Event "Budapest Chess Festival 2024"]
[Site "Budapest"]
[Date "2024.05.24"]
[Round "2.5"]
[White "Borgaonkar, Akshay"]
[Black "Prohaszka, Peter"]
[Result "1/2-1/2"]
[ECO "C70"]
[WhiteElo "2372"]
[BlackElo "2581"]
[Annotator "TA"]
[PlyCount "42"]
[EventDate "2024.05.20"]
[EventType "swiss"]
[EventCountry "HUN"]
[SourceTitle "playchess.com"]
[Source "ChessBase"]
[SourceQuality "1"]
[TimeControl "40/5400+30:1800+30"]

{[%evp 10,42,64,33,45,45,28,37,39,38,33,23,30,26,39,34,52,21,17,-16,-19,-20,0,-35,-16,-41,-10,-10,-27,-8,-33,-5,0,0,0]} 1. e4 {[%emt 0:00:34]} e5 {[%emt 0:00:38]} 2. Nf3 {[%emt 0:00:10]} Nc6 {[%emt 0:00:06]} 3. Bb5 {[%emt 0:00:12]} a6 {[%emt 0:00:16]} 4. Ba4 {[%emt 0:00:13]} Bc5 {[%emt 0:00:24]} 5. O-O {[%emt 0:03:37]} Nge7 {[%emt 0:00:28]} 6. c3 {[%emt 0:01:34]} (6. Nxe5 $5 Nxe5 7. d4 $14) 6... Ng6 {[%emt 0:01:06]} 7. d4 {[%emt 0:01:10]} Ba7 {[%emt 0:00:09]} 8. Bg5 {[%emt 0:00:32]} f6 {[%emt 0:00:07] White is slightly better.} 9. Be3 {[%emt 0:00:04]} O-O {[%emt 0:00:10]} 10. Nbd2 {[%emt 0:02:31]} Kh8 {[%emt 0:00:41]} 11. Re1 {[%emt 0:06:48]} exd4 {[%emt 0:00:53]} 12. Nxd4 {[%emt 0:09:09]} Nxd4 {[%emt 0:00:07]} 13. cxd4 {[%emt 0:02:16]} d5 {[%emt 0:00:34]} 14. Qh5 {[%emt 0:05:38] [#]} (14. exd5 {simplifies} Ne7 15. Bc2 Bf5 16. Bxf5 Nxf5 17. Qb3) 14... c5 $1 {[%emt 0:20:25]} 15. Nf3 {[%emt 0:12:44]} (15. Qxd5 $2 {is the wrong capture.} cxd4 16. Nf1 (16. Qxd8 $2 Rxd8 17. Nf1 dxe3 $19) 16... dxe3 $19) (15. dxc5 $2 d4 16. Bh6 gxh6 $19) 15... cxd4 {[%emt 0:23:49]} 16. Bd2 {[%emt 0:15:18]} Bd7 {[%emt 0:10:55]} 17. Bc2 {[%emt 0:06:59]} ({Much weaker is} 17. Bxd7 Qxd7 18. Qxd5 Qxd5 19. exd5 Rfd8 $15) 17... Qc8 {[%emt 0:06:39]} 18. Rac1 {[%emt 0:02:38] [#] Black must now prevent h3.} Bg4 {[%emt 0:01:32]} 19. Qxd5 {[%emt 0:00:08]} Rd8 {[%emt 0:03:00]} 20. Bd1 {[%emt 0:08:17]} Qd7 {[%emt 0:12:17]} 21. Qxd7 {[%emt 0:01:56]} Rxd7 {[%emt 0:05:07] Weighted Error Value: White=0.07 (flawless) /Black=0.06 (flawless) .  Inaccurate:     	White=3     	---        OK:         	White=10    	Black=5      Best:        	---       	Black=1} 1/2-1/2